[Event "Titled Tuesday Blitz February 28 Early 2023"]
[White "Belov, Alexei"]
[Black "Zaichenko, Daria"]
[WhiteFideId "4128206"]
[BlackFideId "4197453"]
[WhiteElo "2500"]
[BlackElo "2039"]
[Result "1-0"]
[Round "04"]
[TimeControl "180+2"]
[Date "2023.02.28"]
[WhiteClock "0:01:30"]
[BlackClock "0:01:50"]

1. e4 {[%clk 0:03:00]}  c5 {[%clk 0:02:58]} 2. Nf3 {[%clk 0:03:00]}  Nc6 {[%clk 0:02:58]} 3. d4 {[%clk 0:03:00]}  cxd4 {[%clk 0:02:58]} 4. Nxd4 {[%clk 0:03:01]}  Nf6 {[%clk 0:02:58]} 5. Nc3 {[%clk 0:03:01]}  d6 {[%clk 0:02:59]} 6. Be2 {[%clk 0:03:00]}  e5 {[%clk 0:02:56]} 7. Nb3 {[%clk 0:03:00]}  Be7 {[%clk 0:02:56]} 8. O-O {[%clk 0:03:00]}  O-O {[%clk 0:02:56]} 9. f4 {[%clk 0:02:58]}  exf4 {[%clk 0:02:51]} 10. Bxf4 {[%clk 0:02:58]}  Be6 {[%clk 0:02:50]} 11. Kh1 {[%clk 0:02:55]}  a5 {[%clk 0:02:48]} 12. Nd4 {[%clk 0:02:46]}  Nxd4 {[%clk 0:02:40]} 13. Qxd4 {[%clk 0:02:45]}  d5 {[%clk 0:02:37]} 14. e5 {[%clk 0:02:44]}  Nd7 {[%clk 0:02:36]} 15. Nxd5 {[%clk 0:02:43]}  Bxd5 {[%clk 0:02:34]} 16. Qxd5 {[%clk 0:02:42]}  Nb6 {[%clk 0:02:32]} 17. Qxb7 {[%clk 0:02:37]}  Rb8 {[%clk 0:02:26]} 18. Qe4 {[%clk 0:02:36]}  Qd5 {[%clk 0:02:20]} 19. Bf3 {[%clk 0:02:20]}  Qb5 {[%clk 0:02:14]} 20. b3 {[%clk 0:02:17]}  Rfd8 {[%clk 0:02:12]} 21. c4 {[%clk 0:02:15]}  Qb4 {[%clk 0:02:10]} 22. e6 {[%clk 0:02:10]}  f6 {[%clk 0:02:05]} 23. Bxb8 {[%clk 0:02:09]}  Rxb8 {[%clk 0:02:04]} 24. Rad1 {[%clk 0:02:02]}  Qc3 {[%clk 0:01:58]} 25. Rd7 {[%clk 0:01:45]}  Bc5 {[%clk 0:01:51]} 26. e7 {[%clk 0:01:36]}  Re8 {[%clk 0:01:50]} 27. Qe6+ {[%clk 0:01:30]}  Kh8 {[%clk 0:01:50]} 28. Rd8 {[%clk 0:01:30]} 1-0


[Site "https://www.chess.com"]

[Event "Titled Tuesday Blitz February 28 Early 2023"]
[White "Omelja, Artem"]
[Black "Buscar, Michael"]
[WhiteFideId "14119846"]
[BlackFideId "2603616"]
[WhiteElo "2404"]
[BlackElo "2010"]
[Result "1/2-1/2"]
[Round "04"]
[TimeControl "180+2"]
[Date "2023.02.28"]
[WhiteClock "0:01:08"]
[BlackClock "0:00:30"]

1. e4 {[%clk 0:03:00]}  c5 {[%clk 0:02:50]} 2. Nf3 {[%clk 0:03:00]}  Nc6 {[%clk 0:02:49]} 3. Bb5 {[%clk 0:02:59]}  Nf6 {[%clk 0:02:48]} 4. Nc3 {[%clk 0:02:56]}  g6 {[%clk 0:02:47]} 5. e5 {[%clk 0:02:54]}  Ng4 {[%clk 0:02:47]} 6. Bxc6 {[%clk 0:02:54]}  dxc6 {[%clk 0:02:47]} 7. h3 {[%clk 0:02:53]}  Nh6 {[%clk 0:02:47]} 8. a4 {[%clk 0:02:53]}  a5 {[%clk 0:02:38]} 9. d3 {[%clk 0:02:49]}  Nf5 {[%clk 0:02:37]} 10. Ne4 {[%clk 0:02:48]}  b6 {[%clk 0:02:33]} 11. g4 {[%clk 0:02:46]}  Nd4 {[%clk 0:02:32]} 12. c3 {[%clk 0:02:44]}  Ne6 {[%clk 0:02:30]} 13. Be3 {[%clk 0:02:41]}  Bg7 {[%clk 0:02:29]} 14. Qd2 {[%clk 0:02:41]}  h5 {[%clk 0:02:26]} 15. O-O-O {[%clk 0:02:40]}  Ba6 {[%clk 0:02:23]} 16. d4 {[%clk 0:02:30]}  Qd5 {[%clk 0:02:12]} 17. Neg5 {[%clk 0:02:28]}  Nxg5 {[%clk 0:01:59]} 18. Nxg5 {[%clk 0:02:29]}  cxd4 {[%clk 0:01:58]} 19. Qxd4 {[%clk 0:02:26]}  Qxd4 {[%clk 0:01:36]} 20. cxd4 {[%clk 0:02:27]}  Bh6 {[%clk 0:01:10]} 21. Ne4 {[%clk 0:02:07]}  Be2 {[%clk 0:01:02]} 22. Bxh6 {[%clk 0:02:04]}  Bxd1 {[%clk 0:00:55]} 23. Rxd1 {[%clk 0:01:56]}  Rxh6 {[%clk 0:00:54]} 24. g5 {[%clk 0:01:57]}  Rh8 {[%clk 0:00:54]} 25. Nc3 {[%clk 0:01:50]}  O-O-O {[%clk 0:00:53]} 26. f4 {[%clk 0:01:49]}  e6 {[%clk 0:00:50]} 27. Ne4 {[%clk 0:01:48]}  Kc7 {[%clk 0:00:45]} 28. b3 {[%clk 0:01:10]}  Rd5 {[%clk 0:00:37]} 29. Nf6 {[%clk 0:01:09]}  Rdd8 {[%clk 0:00:34]} 30. Ne4 {[%clk 0:01:09]}  Rd5 {[%clk 0:00:30]} 31. Nf6 {[%clk 0:01:08]}  Rdd8 {[%clk 0:00:30]} 32. Ne4 {[%clk 0:01:08]} 1/2-1/2


[Site "https://www.chess.com"]

[Event "Titled Tuesday Blitz February 28 Early 2023"]
[White "Gharamian, Tigran"]
[Black "Ezat, Mohamed"]
[WhiteFideId "13301527"]
[BlackFideId "10600906"]
[WhiteElo "2638"]
[BlackElo "2388"]
[Result "0-1"]
[Round "04"]
[TimeControl "180+2"]
[Date "2023.02.28"]
[WhiteClock "0:00:55"]
[BlackClock "0:00:11"]

1. d4 {[%clk 0:02:58]}  Nf6 {[%clk 0:02:57]} 2. Nf3 {[%clk 0:02:57]}  c5 {[%clk 0:02:57]} 3. d5 {[%clk 0:02:54]}  d6 {[%clk 0:02:56]} 4. c4 {[%clk 0:02:54]}  Bg4 {[%clk 0:02:53]} 5. Nc3 {[%clk 0:02:53]}  a6 {[%clk 0:02:49]} 6. a4 {[%clk 0:02:53]}  Nbd7 {[%clk 0:02:47]} 7. e4 {[%clk 0:02:48]}  Ne5 {[%clk 0:02:46]} 8. Be2 {[%clk 0:02:48]}  Bxf3 {[%clk 0:02:46]} 9. gxf3 {[%clk 0:02:48]}  Ng6 {[%clk 0:02:39]} 10. Be3 {[%clk 0:02:40]}  Nh5 {[%clk 0:02:36]} 11. Qd2 {[%clk 0:02:37]}  e5 {[%clk 0:02:34]} 12. dxe6 {[%clk 0:02:36]}  fxe6 {[%clk 0:02:33]} 13. f4 {[%clk 0:02:37]}  Qh4 {[%clk 0:02:32]} 14. f5 {[%clk 0:02:20]}  exf5 {[%clk 0:02:14]} 15. Bg5 {[%clk 0:02:13]}  Qh3 {[%clk 0:02:08]} 16. Nd5 {[%clk 0:02:04]}  Rc8 {[%clk 0:01:59]} 17. O-O-O {[%clk 0:01:57]}  Ne5 {[%clk 0:01:44]} 18. f4 {[%clk 0:01:46]}  Nf3 {[%clk 0:01:36]} 19. Qe3 {[%clk 0:01:41]}  Nxg5 {[%clk 0:01:34]} 20. Qxh3 {[%clk 0:01:36]}  Nxh3 {[%clk 0:01:33]} 21. Bxh5+ {[%clk 0:01:37]}  g6 {[%clk 0:01:32]} 22. Bf3 {[%clk 0:01:36]}  Nf2 {[%clk 0:01:25]} 23. Rde1 {[%clk 0:01:36]}  Nd3+ {[%clk 0:01:20]} 24. Kd2 {[%clk 0:01:35]}  Nxe1 {[%clk 0:01:19]} 25. Rxe1 {[%clk 0:01:36]}  fxe4 {[%clk 0:01:11]} 26. Rxe4+ {[%clk 0:01:35]}  Kf7 {[%clk 0:01:11]} 27. Bg4 {[%clk 0:01:17]}  Re8 {[%clk 0:01:10]} 28. Rxe8 {[%clk 0:01:14]}  Kxe8 {[%clk 0:01:09]} 29. Bc8 {[%clk 0:01:15]}  Bh6 {[%clk 0:00:46]} 30. Bxb7 {[%clk 0:01:14]}  a5 {[%clk 0:00:36]} 31. Kd3 {[%clk 0:01:10]}  Kd7 {[%clk 0:00:34]} 32. Nf6+ {[%clk 0:01:08]}  Kc7 {[%clk 0:00:32]} 33. Be4 {[%clk 0:01:03]}  Rf8 {[%clk 0:00:30]} 34. Nxh7 {[%clk 0:01:01]}  Rxf4 {[%clk 0:00:29]} 35. Bxg6 {[%clk 0:01:01]}  Rd4+ {[%clk 0:00:29]} 36. Kc3 {[%clk 0:01:01]}  Bg7 {[%clk 0:00:28]} 37. Bd3 {[%clk 0:00:57]}  d5 {[%clk 0:00:16]} 38. Ng5 {[%clk 0:00:55]}  Rg4+ {[%clk 0:00:11]} 0-1


[Site "https://www.chess.com"]

[Event "Titled Tuesday Blitz February 28 Early 2023"]
[White "Jiganchine, Roman"]
[Black "Yaniuk, Volodymyr"]
[WhiteFideId "2603667"]
[BlackFideId "14133083"]
[WhiteElo "2283"]
[BlackElo "2141"]
[Result "0-1"]
[Round "04"]
[TimeControl "180+2"]
[Date "2023.02.28"]
[WhiteClock "0:00:01"]
[BlackClock "0:00:19"]

1. e4 {[%clk 0:02:59]}  e5 {[%clk 0:02:59]} 2. Nf3 {[%clk 0:02:59]}  Nc6 {[%clk 0:03:00]} 3. Nc3 {[%clk 0:02:58]}  Nf6 {[%clk 0:02:59]} 4. Bb5 {[%clk 0:02:57]}  Bd6 {[%clk 0:02:56]} 5. d3 {[%clk 0:02:50]}  a6 {[%clk 0:02:55]} 6. Ba4 {[%clk 0:02:41]}  b5 {[%clk 0:02:55]} 7. Bb3 {[%clk 0:02:41]}  Bc5 {[%clk 0:02:56]} 8. a3 {[%clk 0:02:39]}  d6 {[%clk 0:02:55]} 9. Nd5 {[%clk 0:02:21]}  h6 {[%clk 0:02:49]} 10. c3 {[%clk 0:02:16]}  Bb7 {[%clk 0:02:37]} 11. d4 {[%clk 0:01:54]}  exd4 {[%clk 0:02:28]} 12. cxd4 {[%clk 0:01:53]}  Ba7 {[%clk 0:02:28]} 13. O-O {[%clk 0:01:52]}  O-O {[%clk 0:02:27]} 14. Nxf6+ {[%clk 0:01:34]}  Qxf6 {[%clk 0:02:27]} 15. d5 {[%clk 0:01:30]}  Na5 {[%clk 0:02:14]} 16. Bc2 {[%clk 0:01:29]}  Nc4 {[%clk 0:02:06]} 17. Rb1 {[%clk 0:01:28]}  c6 {[%clk 0:01:58]} 18. b3 {[%clk 0:01:27]}  Ne5 {[%clk 0:01:36]} 19. Nxe5 {[%clk 0:01:04]}  Qxe5 {[%clk 0:01:37]} 20. Bb2 {[%clk 0:01:03]}  Qe7 {[%clk 0:01:30]} 21. Qf3 {[%clk 0:00:59]}  Rac8 {[%clk 0:01:25]} 22. Rfe1 {[%clk 0:00:56]}  Rfe8 {[%clk 0:01:20]} 23. Qg3 {[%clk 0:00:46]}  Qg5 {[%clk 0:01:16]} 24. Qxg5 {[%clk 0:00:41]}  hxg5 {[%clk 0:01:17]} 25. dxc6 {[%clk 0:00:37]}  Bxc6 {[%clk 0:01:16]} 26. Bd3 {[%clk 0:00:37]}  Bd7 {[%clk 0:01:14]} 27. h3 {[%clk 0:00:29]}  Be6 {[%clk 0:01:13]} 28. b4 {[%clk 0:00:29]}  Bc4 {[%clk 0:01:07]} 29. Bxc4 {[%clk 0:00:21]}  Rxc4 {[%clk 0:01:08]} 30. Rbc1 {[%clk 0:00:15]}  Rexe4 {[%clk 0:00:52]} 31. Rxe4 {[%clk 0:00:13]}  Rxe4 {[%clk 0:00:50]} 32. Kf1 {[%clk 0:00:11]}  Rc4 {[%clk 0:00:45]} 33. Rd1 {[%clk 0:00:08]}  Rc6 {[%clk 0:00:44]} 34. Rd2 {[%clk 0:00:06]}  f6 {[%clk 0:00:43]} 35. Ke2 {[%clk 0:00:06]}  Kf7 {[%clk 0:00:43]} 36. Kd3 {[%clk 0:00:07]}  d5 {[%clk 0:00:41]} 37. Re2 {[%clk 0:00:07]}  Rc4 {[%clk 0:00:36]} 38. f3 {[%clk 0:00:07]}  g6 {[%clk 0:00:34]} 39. Re1 {[%clk 0:00:06]}  Bb8 {[%clk 0:00:32]} 40. Re2 {[%clk 0:00:05]}  Bc7 {[%clk 0:00:32]} 41. Re1 {[%clk 0:00:05]}  Bd6 {[%clk 0:00:32]} 42. Re2 {[%clk 0:00:06]}  Bg3 {[%clk 0:00:32]} 43. Re3 {[%clk 0:00:04]}  Bd6 {[%clk 0:00:27]} 44. Re2 {[%clk 0:00:05]}  f5 {[%clk 0:00:20]} 45. Re3 {[%clk 0:00:04]}  g4 {[%clk 0:00:19]} 46. hxg4 {[%clk 0:00:03]}  fxg4 {[%clk 0:00:19]} 47. Re2 {[%clk 0:00:01]}  gxf3 {[%clk 0:00:19]} 0-1


[Site "https://www.chess.com"]

[Event "Titled Tuesday Blitz February 28 Early 2023"]
[White "Prieto Aranguren, Alain"]
[Black "Primbetov, Kazbek"]
[WhiteFideId "2268906"]
[BlackFideId "13702297"]
[WhiteElo "2209"]
[BlackElo "2097"]
[Result "1-0"]
[Round "04"]
[TimeControl "180+2"]
[Date "2023.02.28"]
[WhiteClock "0:00:32"]
[BlackClock "0:00:38"]

1. d4 {[%clk 0:03:00]}  c5 {[%clk 0:03:00]} 2. d5 {[%clk 0:03:00]}  e6 {[%clk 0:03:01]} 3. e4 {[%clk 0:02:57]}  exd5 {[%clk 0:03:00]} 4. exd5 {[%clk 0:02:57]}  d6 {[%clk 0:03:01]} 5. Nf3 {[%clk 0:02:56]}  Bf5 {[%clk 0:03:01]} 6. Bb5+ {[%clk 0:02:52]}  Nd7 {[%clk 0:03:00]} 7. O-O {[%clk 0:02:52]}  Be7 {[%clk 0:03:00]} 8. Re1 {[%clk 0:02:50]}  a6 {[%clk 0:02:49]} 9. Bf1 {[%clk 0:02:49]}  Ngf6 {[%clk 0:02:38]} 10. Nh4 {[%clk 0:02:47]}  Bg6 {[%clk 0:02:35]} 11. Nxg6 {[%clk 0:02:45]}  hxg6 {[%clk 0:02:35]} 12. a4 {[%clk 0:02:42]}  O-O {[%clk 0:02:30]} 13. Na3 {[%clk 0:02:40]}  Rb8 {[%clk 0:02:29]} 14. Bf4 {[%clk 0:02:37]}  Nh5 {[%clk 0:02:28]} 15. Be3 {[%clk 0:02:36]}  Bf6 {[%clk 0:02:25]} 16. Nc4 {[%clk 0:02:31]}  Ne5 {[%clk 0:02:22]} 17. c3 {[%clk 0:02:23]}  Nxc4 {[%clk 0:02:16]} 18. Bxc4 {[%clk 0:02:21]}  b5 {[%clk 0:01:59]} 19. Be2 {[%clk 0:02:20]}  b4 {[%clk 0:01:52]} 20. Rc1 {[%clk 0:02:08]}  bxc3 {[%clk 0:01:50]} 21. bxc3 {[%clk 0:02:08]}  Qa5 {[%clk 0:01:41]} 22. g4 {[%clk 0:02:01]}  Bxc3 {[%clk 0:01:40]} 23. gxh5 {[%clk 0:02:01]}  Bxe1 {[%clk 0:01:40]} 24. Qxe1 {[%clk 0:02:01]}  Qxe1+ {[%clk 0:01:40]} 25. Rxe1 {[%clk 0:02:01]}  Rb4 {[%clk 0:01:36]} 26. Bxa6 {[%clk 0:01:47]}  Rxa4 {[%clk 0:01:35]} 27. Be2 {[%clk 0:01:43]}  gxh5 {[%clk 0:01:33]} 28. Bxh5 {[%clk 0:01:42]}  Rfa8 {[%clk 0:01:29]} 29. Kg2 {[%clk 0:01:39]}  Ra1 {[%clk 0:01:28]} 30. Rxa1 {[%clk 0:01:38]}  Rxa1 {[%clk 0:01:28]} 31. Bf4 {[%clk 0:01:36]}  Ra6 {[%clk 0:01:29]} 32. Bg4 {[%clk 0:01:33]}  Kf8 {[%clk 0:01:28]} 33. Bd7 {[%clk 0:01:33]}  Ke7 {[%clk 0:01:27]} 34. Bc6 {[%clk 0:01:33]}  Ra3 {[%clk 0:01:23]} 35. Kf1 {[%clk 0:01:26]}  f6 {[%clk 0:01:19]} 36. Ke2 {[%clk 0:01:24]}  g5 {[%clk 0:01:18]} 37. Be3 {[%clk 0:01:22]}  Ra2+ {[%clk 0:01:18]} 38. Kd3 {[%clk 0:01:21]}  Ra1 {[%clk 0:01:18]} 39. Kc4 {[%clk 0:01:12]}  Rh1 {[%clk 0:01:17]} 40. Kb5 {[%clk 0:01:12]}  Rb1+ {[%clk 0:01:16]} 41. Ka6 {[%clk 0:01:11]}  Rh1 {[%clk 0:01:17]} 42. Kb7 {[%clk 0:01:11]}  Rxh2 {[%clk 0:01:14]} 43. Kc7 {[%clk 0:01:09]}  Rh8 {[%clk 0:01:01]} 44. f4 {[%clk 0:01:06]}  g4 {[%clk 0:01:00]} 45. f5 {[%clk 0:01:03]}  g3 {[%clk 0:01:00]} 46. Bf4 {[%clk 0:01:03]}  g2 {[%clk 0:01:00]} 47. Bxd6+ {[%clk 0:01:03]}  Kf7 {[%clk 0:01:00]} 48. Bxc5 {[%clk 0:01:01]}  Rh5 {[%clk 0:00:51]} 49. d6 {[%clk 0:00:55]}  Rxf5 {[%clk 0:00:50]} 50. Bg1 {[%clk 0:00:42]}  Rf1 {[%clk 0:00:43]} 51. d7 {[%clk 0:00:35]}  Rxg1 {[%clk 0:00:42]} 52. d8=Q {[%clk 0:00:33]}  Rc1 {[%clk 0:00:38]} 53. Qd5+ {[%clk 0:00:32]} 1-0


[Site "https://www.chess.com"]

[Event "Titled Tuesday Blitz February 28 Early 2023"]
[White "Ramirez Allo, Eduardo"]
[Black "Lauridsen, Jesper Morch"]
[WhiteFideId "2224178"]
[BlackFideId "1401890"]
[WhiteElo "2469"]
[BlackElo "2253"]
[Result "1-0"]
[Round "04"]
[TimeControl "180+2"]
[Date "2023.02.28"]
[WhiteClock "0:00:05"]
[BlackClock "0:00:01"]

1. d4 {[%clk 0:03:00]}  g6 {[%clk 0:03:00]} 2. c4 {[%clk 0:03:01]}  Bg7 {[%clk 0:03:00]} 3. Nf3 {[%clk 0:03:01]}  Nf6 {[%clk 0:03:00]} 4. g3 {[%clk 0:03:02]}  c5 {[%clk 0:02:59]} 5. Bg2 {[%clk 0:03:03]}  cxd4 {[%clk 0:02:58]} 6. Nxd4 {[%clk 0:03:04]}  Nc6 {[%clk 0:02:59]} 7. O-O {[%clk 0:03:02]}  O-O {[%clk 0:02:58]} 8. Nc3 {[%clk 0:03:02]}  Qa5 {[%clk 0:02:58]} 9. e3 {[%clk 0:02:54]}  e6 {[%clk 0:02:48]} 10. a3 {[%clk 0:02:53]}  d5 {[%clk 0:02:42]} 11. b4 {[%clk 0:02:43]}  Qd8 {[%clk 0:02:41]} 12. cxd5 {[%clk 0:02:40]}  Nxd4 {[%clk 0:02:37]} 13. exd4 {[%clk 0:02:27]}  exd5 {[%clk 0:02:30]} 14. Bg5 {[%clk 0:02:13]}  h6 {[%clk 0:02:21]} 15. Bf4 {[%clk 0:02:05]}  Bg4 {[%clk 0:02:18]} 16. Qb3 {[%clk 0:02:04]}  Rc8 {[%clk 0:02:13]} 17. Be5 {[%clk 0:01:58]}  Ne4 {[%clk 0:01:58]} 18. Nxe4 {[%clk 0:01:44]}  dxe4 {[%clk 0:01:58]} 19. Bxe4 {[%clk 0:01:36]}  Bxe5 {[%clk 0:01:36]} 20. dxe5 {[%clk 0:01:37]}  Qd4 {[%clk 0:01:17]} 21. Bxb7 {[%clk 0:01:32]}  Rc3 {[%clk 0:01:06]} 22. Qd5 {[%clk 0:01:32]}  Qb6 {[%clk 0:01:06]} 23. Rfc1 {[%clk 0:01:20]}  Bf3 {[%clk 0:00:59]} 24. Qxf3 {[%clk 0:01:09]}  Rxf3 {[%clk 0:00:58]} 25. Bxf3 {[%clk 0:01:10]}  Re8 {[%clk 0:00:53]} 26. Re1 {[%clk 0:01:02]}  Qd4 {[%clk 0:00:44]} 27. Rad1 {[%clk 0:01:01]}  Qc3 {[%clk 0:00:42]} 28. Re3 {[%clk 0:01:01]}  Qb2 {[%clk 0:00:39]} 29. Rd7 {[%clk 0:00:53]}  Rxe5 {[%clk 0:00:26]} 30. Rxe5 {[%clk 0:00:54]}  Qxe5 {[%clk 0:00:25]} 31. Rxa7 {[%clk 0:00:51]}  Kg7 {[%clk 0:00:21]} 32. Kg2 {[%clk 0:00:38]}  h5 {[%clk 0:00:21]} 33. h4 {[%clk 0:00:34]}  Qb2 {[%clk 0:00:17]} 34. Bc6 {[%clk 0:00:16]}  Qd4 {[%clk 0:00:16]} 35. Ra8 {[%clk 0:00:11]}  Qc3 {[%clk 0:00:15]} 36. b5 {[%clk 0:00:10]}  f5 {[%clk 0:00:11]} 37. Ra7+ {[%clk 0:00:05]}  Kh6 {[%clk 0:00:09]} 38. Rf7 {[%clk 0:00:04]}  Qxa3 {[%clk 0:00:07]} 39. Rf6 {[%clk 0:00:02]}  Qc3 {[%clk 0:00:07]} 40. Rf8 {[%clk 0:00:02]}  Qc5 {[%clk 0:00:06]} 41. Rh8+ {[%clk 0:00:01]}  Kg7 {[%clk 0:00:07]} 42. Rd8 {[%clk 0:00:02]}  Qb6 {[%clk 0:00:06]} 43. Rd7+ {[%clk 0:00:02]}  Kh6 {[%clk 0:00:07]} 44. Rd3 {[%clk 0:00:03]}  f4 {[%clk 0:00:07]} 45. Rf3 {[%clk 0:00:03]}  fxg3 {[%clk 0:00:06]} 46. Rxg3 {[%clk 0:00:04]}  Qc5 {[%clk 0:00:07]} 47. Be8 {[%clk 0:00:03]}  Kg7 {[%clk 0:00:04]} 48. Bxg6 {[%clk 0:00:02]}  Kf8 {[%clk 0:00:04]} 49. Be4 {[%clk 0:00:01]}  Qxb5 {[%clk 0:00:04]} 50. Bf3 {[%clk 0:00:01]}  Qc5 {[%clk 0:00:03]} 51. Rg5 {[%clk 0:00:01]}  Qb4 {[%clk 0:00:03]} 52. Rxh5 {[%clk 0:00:02]}  Kg7 {[%clk 0:00:04]} 53. Kg3 {[%clk 0:00:03]}  Kg6 {[%clk 0:00:04]} 54. Rg5+ {[%clk 0:00:03]}  Kf6 {[%clk 0:00:04]} 55. Rg4 {[%clk 0:00:04]}  Qb8+ {[%clk 0:00:04]} 56. Kg2 {[%clk 0:00:04]}  Qe5 {[%clk 0:00:04]} 57. Rg3 {[%clk 0:00:04]}  Qb2 {[%clk 0:00:03]} 58. h5 {[%clk 0:00:05]}  Qc1 {[%clk 0:00:01]} 59. Rg6+ {[%clk 0:00:05]}  Kf7 {[%clk 0:00:01]} 60. Rg4 {[%clk 0:00:06]}  Qh6 {[%clk 0:00:01]} 61. Rg3 {[%clk 0:00:05]} 1-0


[Site "https://www.chess.com"]

[Event "Titled Tuesday Blitz February 28 Early 2023"]
[White "Ardila, Oscar Humberto"]
[Black "Vivas Zamora, Fabian Ernesto"]
[WhiteFideId "4404742"]
[BlackFideId "3902480"]
[WhiteElo "1946"]
[BlackElo "2262"]
[Result "0-1"]
[Round "04"]
[TimeControl "180+2"]
[Date "2023.02.28"]
[WhiteClock "0:00:04"]
[BlackClock "0:00:12"]

1. d4 {[%clk 0:03:00]}  Nf6 {[%clk 0:02:59]} 2. c4 {[%clk 0:03:00]}  g6 {[%clk 0:02:59]} 3. Nc3 {[%clk 0:03:00]}  d5 {[%clk 0:03:00]} 4. Nf3 {[%clk 0:02:59]}  Bg7 {[%clk 0:03:00]} 5. e3 {[%clk 0:03:00]}  O-O {[%clk 0:03:00]} 6. Be2 {[%clk 0:02:59]}  c5 {[%clk 0:03:00]} 7. dxc5 {[%clk 0:02:58]}  dxc4 {[%clk 0:02:51]} 8. O-O {[%clk 0:02:49]}  Na6 {[%clk 0:02:40]} 9. c6 {[%clk 0:02:41]}  Qc7 {[%clk 0:02:29]} 10. Bxc4 {[%clk 0:02:03]}  Qxc6 {[%clk 0:02:29]} 11. Bb5 {[%clk 0:02:00]}  Qb6 {[%clk 0:02:24]} 12. Qe2 {[%clk 0:01:56]}  Bg4 {[%clk 0:02:11]} 13. e4 {[%clk 0:01:55]}  Nc7 {[%clk 0:01:20]} 14. Bc4 {[%clk 0:01:49]}  Qc6 {[%clk 0:01:11]} 15. Bb3 {[%clk 0:01:42]}  Ne6 {[%clk 0:01:02]} 16. Qe3 {[%clk 0:01:34]}  Bxf3 {[%clk 0:01:00]} 17. gxf3 {[%clk 0:01:31]}  Nh5 {[%clk 0:00:54]} 18. Nd5 {[%clk 0:01:22]}  Rfe8 {[%clk 0:00:36]} 19. Qd3 {[%clk 0:00:42]}  Rad8 {[%clk 0:00:29]} 20. Qc4 {[%clk 0:00:40]}  Nd4 {[%clk 0:00:20]} 21. Kg2 {[%clk 0:00:28]}  Qxc4 {[%clk 0:00:15]} 22. Bxc4 {[%clk 0:00:28]}  Rc8 {[%clk 0:00:13]} 23. Bd3 {[%clk 0:00:20]}  e6 {[%clk 0:00:13]} 24. Nf4 {[%clk 0:00:17]}  Rxc1 {[%clk 0:00:12]} 25. Nxh5 {[%clk 0:00:15]}  Rxf1 {[%clk 0:00:11]} 26. Nxg7 {[%clk 0:00:12]}  Rxa1 {[%clk 0:00:11]} 27. Nxe8 {[%clk 0:00:12]}  Rd1 {[%clk 0:00:07]} 28. Bc4 {[%clk 0:00:10]}  Nc6 {[%clk 0:00:06]} 29. Nf6+ {[%clk 0:00:09]}  Kg7 {[%clk 0:00:07]} 30. Ng4 {[%clk 0:00:08]}  Rd2 {[%clk 0:00:06]} 31. b3 {[%clk 0:00:06]}  h5 {[%clk 0:00:07]} 32. Ne3 {[%clk 0:00:05]}  Ne5 {[%clk 0:00:07]} 33. Bb5 {[%clk 0:00:05]}  Rxa2 {[%clk 0:00:07]} 34. f4 {[%clk 0:00:06]}  Ng4 {[%clk 0:00:07]} 35. Nxg4 {[%clk 0:00:05]}  hxg4 {[%clk 0:00:08]} 36. Kg3 {[%clk 0:00:06]}  f5 {[%clk 0:00:08]} 37. exf5 {[%clk 0:00:06]}  gxf5 {[%clk 0:00:09]} 38. Bc4 {[%clk 0:00:06]}  Kf6 {[%clk 0:00:09]} 39. f3 {[%clk 0:00:04]}  gxf3 {[%clk 0:00:09]} 40. h4 {[%clk 0:00:03]}  f2 {[%clk 0:00:09]} 41. h5 {[%clk 0:00:04]}  Rc2 {[%clk 0:00:09]} 42. Bb5 {[%clk 0:00:02]}  Rc3+ {[%clk 0:00:09]} 43. Kxf2 {[%clk 0:00:02]}  Rxb3 {[%clk 0:00:10]} 44. Bc4 {[%clk 0:00:02]}  Rh3 {[%clk 0:00:10]} 45. Kg2 {[%clk 0:00:01]}  Rxh5 {[%clk 0:00:11]} 46. Kf3 {[%clk 0:00:02]}  Rh8 {[%clk 0:00:11]} 47. Ke3 {[%clk 0:00:03]}  Rc8 {[%clk 0:00:12]} 48. Bb5 {[%clk 0:00:03]}  Rc5 {[%clk 0:00:12]} 49. Kd4 {[%clk 0:00:04]}  Rxb5 {[%clk 0:00:12]} 0-1


[Site "https://www.chess.com"]

[Event "Titled Tuesday Blitz February 28 Early 2023"]
[White "Mohammed, Dilshad"]
[Black "Schut, Han"]
[WhiteFideId "5050421"]
[BlackFideId "1005561"]
[WhiteElo "2102"]
[BlackElo "2024"]
[Result "1-0"]
[Round "04"]
[TimeControl "180+2"]
[Date "2023.02.28"]
[WhiteClock "0:00:27"]
[BlackClock "0:00:04"]

1. Nf3 {[%clk 0:03:00]}  Nf6 {[%clk 0:02:59]} 2. d4 {[%clk 0:02:59]}  g6 {[%clk 0:02:56]} 3. c4 {[%clk 0:02:59]}  Bg7 {[%clk 0:02:56]} 4. Nc3 {[%clk 0:03:00]}  d5 {[%clk 0:02:57]} 5. cxd5 {[%clk 0:03:00]}  Nxd5 {[%clk 0:02:57]} 6. Qa4+ {[%clk 0:02:59]}  Nc6 {[%clk 0:02:38]} 7. e4 {[%clk 0:02:57]}  Nb6 {[%clk 0:02:35]} 8. Qb3 {[%clk 0:02:45]}  Nxd4 {[%clk 0:02:20]} 9. Nxd4 {[%clk 0:02:46]}  Qxd4 {[%clk 0:02:20]} 10. Be3 {[%clk 0:02:40]}  Qd8 {[%clk 0:02:10]} 11. Rd1 {[%clk 0:02:39]}  Bd7 {[%clk 0:02:10]} 12. Be2 {[%clk 0:02:26]}  O-O {[%clk 0:02:06]} 13. O-O {[%clk 0:02:25]}  Qc8 {[%clk 0:02:05]} 14. Bd4 {[%clk 0:02:20]}  Be6 {[%clk 0:01:56]} 15. Qc2 {[%clk 0:02:20]}  Rd8 {[%clk 0:01:51]} 16. Bxg7 {[%clk 0:02:19]}  Kxg7 {[%clk 0:01:51]} 17. f4 {[%clk 0:02:16]}  f6 {[%clk 0:01:43]} 18. a4 {[%clk 0:02:16]}  Rxd1 {[%clk 0:01:39]} 19. Rxd1 {[%clk 0:02:15]}  Qg8 {[%clk 0:01:38]} 20. Rd4 {[%clk 0:02:02]}  Rd8 {[%clk 0:01:32]} 21. Qd2 {[%clk 0:02:03]}  Rxd4 {[%clk 0:01:20]} 22. Qxd4 {[%clk 0:02:04]}  a5 {[%clk 0:01:04]} 23. g4 {[%clk 0:01:57]}  Qe8 {[%clk 0:01:00]} 24. f5 {[%clk 0:01:39]}  Qd7 {[%clk 0:00:59]} 25. Qxd7 {[%clk 0:01:27]}  Bxd7 {[%clk 0:00:58]} 26. b3 {[%clk 0:01:27]}  Bc6 {[%clk 0:00:55]} 27. Bd3 {[%clk 0:01:26]}  Nd7 {[%clk 0:00:55]} 28. Kf2 {[%clk 0:01:24]}  Ne5 {[%clk 0:00:55]} 29. Be2 {[%clk 0:01:25]}  b6 {[%clk 0:00:55]} 30. Ke3 {[%clk 0:01:24]}  Kf7 {[%clk 0:00:51]} 31. h4 {[%clk 0:01:20]}  e6 {[%clk 0:00:51]} 32. Kf4 {[%clk 0:01:13]}  exf5 {[%clk 0:00:49]} 33. exf5 {[%clk 0:01:13]}  gxf5 {[%clk 0:00:26]} 34. Kxf5 {[%clk 0:01:13]}  Bf3 {[%clk 0:00:14]} 35. Bc4+ {[%clk 0:01:01]}  Nxc4 {[%clk 0:00:13]} 36. bxc4 {[%clk 0:01:02]}  Ke7 {[%clk 0:00:11]} 37. Nb5 {[%clk 0:00:49]}  Bc6 {[%clk 0:00:09]} 38. Nc3 {[%clk 0:00:46]}  Bb7 {[%clk 0:00:06]} 39. Nb5 {[%clk 0:00:39]}  Bc6 {[%clk 0:00:07]} 40. Nxc7 {[%clk 0:00:39]}  Bxa4 {[%clk 0:00:07]} 41. Nd5+ {[%clk 0:00:40]}  Kf7 {[%clk 0:00:07]} 42. Nxb6 {[%clk 0:00:40]}  Bb3 {[%clk 0:00:06]} 43. Ke4 {[%clk 0:00:26]}  a4 {[%clk 0:00:05]} 44. Kd3 {[%clk 0:00:27]}  a3 {[%clk 0:00:04]} 45. Kc3 {[%clk 0:00:27]} 1-0


[Site "https://www.chess.com"]